bitfinex/quotes_SOLUSD_20240621
["timestamp","ask_amount","ask_price","bid_price","bid_amount"]
[1718956053951,46.91733015,131.31,131.23,15.9137]
[1718956054137,0.17,131.3,131.23,15.9137]
[1718956054551,0.17,131.3,131.22,6.2139]
[1718956055655,1.91733015,131.31,131.22,6.2139]
[1718956056025,0.17,131.3,131.22,6.2139]
[1718956056632,1.74710428,131.29,131.22,6.2139]
[1718956056837,0.17,131.28,131.22,6.2139]
[1718956057047,0.34,131.28,131.19,16.236]
[1718956057244,100.0,131.26,131.19,16.236]
[1718956057450,46.74688066,131.25,131.19,16.236]
[1718956057656,0.34,131.24,131.19,16.236]
[1718956057952,0.34,131.24,131.17,6.4672]
[1718956060451,1.74688066,131.25,131.17,6.4672]
[1718956062237,0.17,131.24,131.15,15.2808]
[1718956062439,1.91688066,131.24,131.15,15.2808]
[1718956062640,0.17,131.23,131.15,15.2808]
[1718956064645,1.74688066,131.24,131.15,38.0208]
[1718956065237,100.0,131.21,131.13,0.11036772]
[1718956065443,100.0,131.23,131.13,0.11036772]
[1718956066049,0.17,131.22,131.13,0.11036772]
[1718956066365,45.17,131.23,131.13,0.11036772]
[1718956068448,6.1026,131.09,131.08,0.6233538]
[1718956069943,12.4689,131.09,131.08,0.6233538]
[1718956070295,57.8089,131.09,131.08,0.6233538]
[1718956070574,1.3,131.05,131.0,44.42911486]
[1718956071243,1.3,131.05,131.0,51.08491486]
[1718956072380,1.3,131.05,131.01,26.1062]
[1718956072538,1.3,131.05,131.01,20.0]
[1718956072741,1.3,131.05,131.01,26.1063]
[1718956072938,1.3,131.05,131.01,20.0]
[1718956074059,52.1367,131.27,131.05,16.084191]
[1718956074266,92.01371592,131.22,131.06,20.0]
[1718956074475,92.01371592,131.21,131.07,6.1035]
[1718956074641,52.1367,131.27,131.07,6.1035]
[1718956074642,92.01371592,131.23,131.1,6.0315]
[1718956074968,92.01371592,131.23,131.11,20.0]
[1718956074969,92.01371592,131.2,131.11,20.0]
[1718956075280,52.1367,131.27,131.11,20.0]
[1718956075478,92.01371592,131.19,131.11,20.0]
[1718956075644,92.01371592,131.21,131.11,20.0]
[1718956076041,7.81283924,131.23,131.11,20.0]
[1718956076262,92.01371592,131.21,131.11,20.0]
[1718956076464,92.01371592,131.2,131.11,20.0]
[1718956076661,92.01371592,131.21,131.11,20.0]
[1718956076855,0.17,131.2,131.11,20.0]
[1718956077061,45.0,131.2,131.11,35.0362]
[1718956077258,45.0,131.21,131.11,35.0362]
[1718956077649,100.0,131.21,131.11,35.0362]
[1718956078059,100.0,131.22,131.11,35.0362]
[1718956078760,100.0,131.2,131.11,35.0362]
[1718956079074,1.74665927,131.21,131.11,35.0362]
[1718956079675,0.17,131.2,131.11,35.0362]
[1718956080066,200.0,131.19,131.09,34.25]
[1718956080258,200.0,131.19,131.06,34.21442799]
[1718956080569,100.0,131.21,131.07,31.46372799]
[1718956080768,100.0,131.21,131.08,34.25]
[1718956080975,0.17,131.2,131.09,20.0]
[1718956081269,100.0,131.24,131.1,22.74]
[1718956081456,1.70282268,131.23,131.11,42.74]
[1718956081678,1.70282268,131.23,131.09,20.0]
[1718956081679,1.70282268,131.23,131.14,21.3929]
[1718956081980,1.70282268,131.23,131.15,20.0]
[1718956083887,1.70282268,131.23,131.15,42.74]
[1718956084090,1.70282268,131.23,131.17,22.74]
[1718956084290,100.0,131.3,131.19,6.0317]
[1718956084583,100.0,131.32,131.2,20.0]
[1718956085320,100.0,131.34,131.21,15.4047]
[1718956085486,100.0,131.34,131.22,20.0]
[1718956085784,106.3779,131.36,131.22,20.0]
[1718956085986,100.0,131.34,131.22,20.0]
[1718956086166,106.3779,131.36,131.22,20.0]
[1718956086582,100.0,131.33,131.22,20.0]
[1718956088068,0.17,131.32,131.22,20.0]
[1718956088787,100.0,131.35,131.22,20.0]
[1718956088966,184.15924087,131.37,131.23,6.3837]
[1718956089171,184.15924087,131.37,131.24,20.0]
[1718956089567,100.0,131.35,131.24,20.0]
[1718956090197,7.80438429,131.37,131.25,15.1754]
[1718956090370,7.80438429,131.37,131.26,20.0]
[1718956090576,261.2939,131.4,131.26,20.0]
[1718956090895,352.80830028,131.4,131.26,20.0]
[1718956091104,261.2939,131.4,131.26,20.0]
[1718956091265,452.1245839,131.4,131.26,20.0]
[1718956091465,269.09578334,131.4,131.26,20.0]
[1718956091676,360.61018362,131.4,131.26,20.0]
[1718956091893,91.51440028,131.39,131.26,20.0]
[1718956092070,261.2939,131.4,131.26,20.0]
[1718956092272,352.80830028,131.4,131.26,20.0]
[1718956092471,255.1,131.4,131.26,20.0]
[1718956092672,6.0239,131.44,131.27,6.244]
[1718956092888,91.51440028,131.43,131.28,20.0]
[1718956093192,91.51440028,131.41,131.28,20.0]
[1718956093578,7.80703974,131.43,131.28,20.0]
[1718956093766,183.02880056,131.41,131.28,20.0]
[1718956093967,91.51440028,131.39,131.28,20.0]
[1718956094184,7.80703974,131.43,131.28,20.0]
[1718956094499,91.51440028,131.39,131.28,20.0]
[1718956094670,7.80703974,131.43,131.28,20.0]
[1718956094867,7.80703974,131.43,131.29,15.8781]
[1718956095067,99.32144002,131.43,131.3,20.0]
[1718956095269,6.0239,131.44,131.3,20.0]
[1718956095489,183.02880056,131.4,131.3,20.0]
[1718956095698,7.80563912,131.43,131.3,20.0]
[1718956095882,19.94108636,131.4,131.3,20.0]
[1718956096090,7.80563912,131.43,131.3,20.0]
[1718956096282,19.94108636,131.36,131.29,15.8781]
[1718956096467,19.94108636,131.37,131.29,15.8781]
[1718956096798,0.34,131.36,131.29,15.8781]
[1718956097106,45.0,131.37,131.29,15.8781]
[1718956097310,0.17,131.36,131.29,15.8781]
[1718956097596,0.34,131.36,131.29,15.8781]
[1718956097812,19.94108636,131.4,131.29,15.8781]
[1718956097999,45.17,131.39,131.29,15.8781]
[1718956098299,0.17,131.39,131.29,15.8781]
[1718956098494,45.0,131.4,131.3,20.0]
[1718956098679,39.88217272,131.38,131.3,20.0]
[1718956098865,0.17,131.37,131.29,15.8781]
[1718956099307,45.0,131.38,131.29,15.8781]
[1718956099508,0.17,131.38,131.29,15.8781]
[1718956099709,0.34,131.38,131.3,20.0]
[1718956100005,19.94108636,131.45,131.31,63.2497]
[1718956100172,0.8278858,131.46,131.32,42.74]
[1718956100501,8.63278932,131.46,131.32,42.74]
[1718956100671,0.8278858,131.46,131.33,38.311]
[1718956100867,0.8278858,131.46,131.34,20.0]
[1718956101108,20.76897216,131.46,131.34,20.0]
[1718956101689,0.8278858,131.46,131.34,20.0]
[1718956101893,100.8278858,131.46,131.34,20.0]
[1718956102999,100.8278858,131.46,131.34,42.74]
[1718956103297,0.8278858,131.46,131.35,29.1197]
[1718956103491,0.8278858,131.46,131.36,20.0]
[1718956103700,200.8278858,131.46,131.36,20.0]
[1718956104596,100.8278858,131.46,131.36,20.0]
[1718956104898,0.17,131.45,131.36,20.0]
[1718956105082,0.34,131.45,131.36,20.0]
[1718956105284,0.17,131.45,131.36,20.0]
[1718956105488,0.8278858,131.46,131.36,20.0]
[1718956105697,0.8278858,131.46,131.36,42.74]
[1718956107376,200.8278858,131.46,131.36,20.0]
[1718956107596,45.0,131.45,131.36,20.0]
[1718956107787,0.17,131.44,131.36,20.0]
[1718956107995,0.17,131.44,131.35,6.3797]
[1718956108399,100.17,131.44,131.35,6.3797]
[1718956108787,0.17,131.43,131.35,6.3797]
[1718956108988,0.8278858,131.46,131.35,6.3797]
[1718956109304,0.17,131.45,131.35,6.3797]
[1718956109506,0.17,131.45,131.36,20.0]
[1718956110416,100.0,131.42,131.35,6.3797]
[1718956110722,45.17,131.41,131.35,6.3797]
[1718956111000,45.17,131.41,131.33,15.571]
[1718956111001,100.17,131.4,131.33,15.571]
[1718956111208,100.17,131.4,131.31,6.5956]
[1718956111209,100.0,131.38,131.31,6.5956]
[1718956111378,0.17,131.37,131.31,6.5956]
[1718956111582,45.17,131.37,131.31,6.5956]
[1718956111805,45.34,131.37,131.31,6.5956]
[1718956113105,145.34,131.37,131.31,6.5956]
[1718956113594,145.34,131.37,131.29,15.284]
[1718956113793,100.0,131.35,131.29,15.284]
[1718956113988,45.0,131.34,131.29,15.284]
[1718956114195,0.34,131.33,131.29,15.284]
[1718956116209,100.0,131.37,131.29,15.284]
[1718956116401,0.17,131.36,131.29,15.284]
[1718956116583,45.34,131.36,131.29,15.284]
[1718956116786,0.17,131.36,131.28,6.2898]
[1718956117194,100.0,131.37,131.28,6.2898]
[1718956117401,116.0382,131.39,131.28,6.2898]
[1718956117602,20.0,131.38,131.28,6.2898]
[1718956117907,7.81359609,131.38,131.28,6.2898]
[1718956118209,100.0,131.39,131.28,6.2898]
[1718956118409,100.0,131.39,131.29,20.0]
[1718956118601,0.17,131.38,131.29,20.0]
[1718956120091,45.34,131.38,131.29,20.0]
[1718956120397,0.34,131.38,131.29,20.0]
[1718956120916,100.0,131.41,131.29,20.0]
[1718956121506,100.0,131.41,131.3,16.1277]
[1718956121705,100.0,131.41,131.31,20.0]
[1718956123310,45.17,131.4,131.31,20.0]
[1718956123511,0.17,131.4,131.31,20.0]
[1718956123714,45.17,131.4,131.31,20.0]
[1718956124193,0.17,131.39,131.31,20.0]
[1718956124904,100.0,131.43,131.32,6.1728]
[1718956125105,100.0,131.43,131.33,20.0]
[1718956126113,100.0,131.45,131.34,16.3128]
[1718956126305,100.0,131.45,131.35,20.0]
[1718956126810,0.8278858,131.46,131.35,20.0]
[1718956127199,8.63902573,131.46,131.35,42.9]
[1718956127389,8.63902573,131.46,131.36,6.3265]
[1718956127594,0.8278858,131.46,131.36,6.3265]
[1718956127827,0.8278858,131.46,131.37,20.0]
[1718956128209,45.84419597,131.43,131.36,6.3265]
[1718956128514,0.8278858,131.46,131.36,6.3265]
[1718956128515,100.0,131.42,131.36,6.3265]
[1718956128705,0.34,131.41,131.36,6.3265]
[1718956131013,66.67208177,131.46,131.36,6.3265]
[1718956131216,91.18419597,131.45,131.36,6.3265]
[1718956131393,45.34,131.45,131.36,6.3265]
[1718956131590,91.68839194,131.43,131.36,6.3265]
[1718956131790,0.17,131.42,131.36,6.3265]
[1718956131991,0.34,131.42,131.36,6.3265]
[1718956132513,46.18419597,131.42,131.36,6.3265]
[1718956133218,0.34,131.42,131.36,6.3265]
[1718956133427,45.84419597,131.41,131.36,6.3265]
[1718956133594,90.84419597,131.4,131.36,6.3265]
[1718956133788,0.17,131.39,131.36,6.3265]
[1718956134701,0.17,131.39,131.34,16.3128]
[1718956135007,45.17,131.39,131.34,16.3128]
[1718956135431,0.17,131.38,131.34,16.3128]
[1718956136315,0.17,131.38,131.26,6.0947]
[1718956136523,0.17,131.38,131.26,28.9947]
[1718956136717,0.17,131.38,131.25,22.4327]
[1718956137524,0.17,131.38,131.26,20.0]
[1718956138013,0.17,131.38,131.25,22.4327]
[1718956138827,7.99355055,131.38,131.25,22.4327]
[1718956139030,45.0,131.37,131.25,22.4327]
[1718956139216,0.34,131.36,131.26,20.0]
[1718956142711,14.08523451,131.39,131.27,22.6826]
[1718956142911,7.8225336,131.39,131.29,22.6826]
[1718956143219,255.1,131.42,131.3,42.9]
[1718956143422,255.1,131.42,131.31,41.746]
[1718956144226,255.1,131.42,131.31,47.8383]
[1718956144418,255.1,131.42,131.31,41.746]
[1718956144723,255.1,131.42,131.31,47.8383]
[1718956144937,255.1,131.42,131.33,6.0912]
[1718956145111,0.8278858,131.46,131.34,20.0]
[1718956146030,20.8278858,131.46,131.33,20.0]
[1718956146232,0.34,131.45,131.32,22.0137]
[1718956146932,0.8278858,131.46,131.34,22.0683]
[1718956147130,0.8278858,131.46,131.35,20.0]
[1718956149109,20.99123471,131.45,131.35,20.0]
[1718956149304,0.17,131.44,131.35,20.0]
[1718956149511,45.34,131.44,131.35,20.0]
[1718956149728,21.33123471,131.44,131.35,20.0]
[1718956149930,45.0,131.43,131.35,20.0]
[1718956150122,0.17,131.42,131.35,20.0]
[1718956150326,0.34,131.42,131.35,20.0]
[1718956150919,0.17,131.42,131.35,20.0]
[1718956151625,0.34,131.42,131.35,20.0]
[1718956151809,0.17,131.41,131.35,20.0]
[1718956152005,0.17,131.42,131.35,20.0]
[1718956152210,0.34,131.43,131.35,20.0]
[1718956153326,20.99123471,131.41,131.34,22.0683]
[1718956153541,86.98246942,131.4,131.34,22.0683]
[1718956153741,0.34,131.39,131.34,22.0683]
[1718956154217,0.17,131.38,131.34,22.0683]
[1718956154421,100.0,131.42,131.34,22.0683]
[1718956154607,100.34,131.41,131.34,22.0683]
[1718956154807,0.34,131.41,131.34,22.0683]
[1718956155137,145.34,131.41,131.34,22.0683]
[1718956156619,0.34,131.41,131.34,22.0683]
[1718956156821,0.17,131.4,131.34,22.0683]
[1718956157125,45.0,131.42,131.34,22.0683]
[1718956157327,100.0,131.45,131.34,22.0683]
[1718956157534,100.0,131.45,131.35,20.0]
[1718956158133,0.8278858,131.46,131.35,20.0]
[1718956158320,0.8278858,131.46,131.36,22.7147]
[1718956160517,0.8278858,131.46,131.37,20.0]
[1718956161619,0.17,131.45,131.37,20.0]
[1718956162135,0.34,131.45,131.37,20.0]
[1718956162622,0.17,131.45,131.37,20.0]
[1718956163922,0.34,131.45,131.37,20.0]
[1718956164554,0.8278858,131.46,131.38,16.1746]
[1718956165041,0.8278858,131.46,131.39,6.5539]
[1718956165358,0.8278858,131.46,131.41,15.7304]
[1718956166051,0.8278858,131.46,131.41,38.6304]
[1718956166350,382.5,131.52,131.42,26.3219]
[1718956166554,129.24,131.54,131.42,26.3219]
[1718956166759,229.24,131.54,131.42,26.3219]
[1718956166954,237.04540248,131.54,131.42,26.3219]
[1718956167539,207.80540248,131.54,131.42,26.3219]
[1718956167855,214.0781294,131.54,131.42,26.3219]
[1718956169133,0.34,131.53,131.42,26.3219]
[1718956169326,0.34,131.53,131.43,15.3055]
[1718956169327,0.17,131.53,131.43,15.3055]
[1718956169527,0.17,131.53,131.44,20.0]
[1718956170773,0.34,131.53,131.44,20.0]
[1718956171255,45.34,131.53,131.44,20.0]
[1718956171852,0.34,131.53,131.44,20.0]
[1718956172954,0.17,131.52,131.45,6.2697]
[1718956173158,0.17,131.53,131.45,6.2697]
[1718956173345,0.34,131.53,131.45,6.2697]
[1718956174754,0.34,131.53,131.43,15.3055]
[1718956174755,20.34,131.53,131.43,15.3055]
[1718956174948,18.33194817,131.48,131.43,15.3055]
[1718956175150,0.17,131.47,131.43,15.3055]
[1718956175350,0.17,131.48,131.43,15.3055]
[1718956175651,18.67194817,131.48,131.43,15.3055]
[1718956175830,0.34,131.48,131.43,15.3055]
[1718956176231,45.0,131.49,131.43,15.3055]
[1718956176449,0.17,131.47,131.43,15.3055]
[1718956176735,0.17,131.48,131.43,15.3055]
[1718956176942,0.17,131.47,131.43,15.3055]
[1718956177143,0.17,131.48,131.43,15.3055]
[1718956177345,37.00389634,131.48,131.42,6.2676]
[1718956177536,0.34,131.48,131.42,6.2676]
[1718956177741,18.67194817,131.48,131.42,6.2676]
[1718956177944,45.0,131.47,131.42,6.2676]
[1718956178143,0.17,131.46,131.42,6.2676]
[1718956178336,63.50194817,131.47,131.42,6.2676]
[1718956178537,63.50194817,131.47,131.4,15.1958]
[1718956178538,18.33194817,131.45,131.4,15.1958]
[1718956178751,0.17,131.44,131.4,15.1958]
[1718956178937,0.34,131.44,131.4,15.1958]
[1718956179539,45.0,131.45,131.4,15.1958]
[1718956179739,0.34,131.44,131.4,15.1958]
[1718956179941,28.12508162,131.44,131.4,15.1958]
[1718956180158,0.34,131.43,131.4,15.1958]
[1718956180359,0.17,131.42,131.4,15.1958]
[1718956180659,14.06254081,131.42,131.37,16.0483]
[1718956180860,0.17,131.41,131.37,16.0483]
[1718956181066,0.34,131.41,131.37,16.0483]
[1718956181364,45.34,131.41,131.37,16.0483]
[1718956182268,59.40254081,131.41,131.37,16.0483]
[1718956182649,45.34,131.41,131.37,16.0483]
[1718956183158,14.06254081,131.4,131.35,6.1743]
[1718956183547,0.34,131.39,131.35,6.1743]
[1718956183951,0.34,131.39,131.34,15.9591]
[1718956184151,0.17,131.38,131.34,15.9591]
[1718956184341,0.17,131.37,131.34,15.9591]
[1718956184663,59.23254081,131.37,131.31,21.883]
[1718956184863,14.06254081,131.36,131.31,21.883]
[1718956185051,0.17,131.35,131.31,21.883]
[1718956185373,0.34,131.35,131.31,21.883]
[1718956195274,6.01149336,131.38,131.31,21.883]
[1718956195449,29.3,131.39,131.31,21.883]
[1718956196666,45.34,131.38,131.31,21.883]
[1718956199775,0.34,131.38,131.31,21.883]
[1718956200286,0.17,131.38,131.31,21.883]
[1718956200578,7.81947184,131.4,131.31,21.883]
[1718956200780,6.07678881,131.42,131.31,21.883]
[1718956200985,255.1,131.43,131.31,21.883]
[1718956201363,262.91560047,131.43,131.31,21.883]
[1718956201576,29.3,131.4,131.31,21.883]
[1718956201973,45.34,131.39,131.31,21.883]
[1718956202364,29.3,131.37,131.31,21.883]
[1718956202581,65.0,131.36,131.28,22.1467]
[1718956202759,0.17,131.35,131.28,22.1467]
[1718956205280,0.17,131.35,131.16,25.227491]
[1718956205281,29.3,131.33,131.25,22.2437]
[1718956205489,29.3,131.27,131.2,6.6051]
[1718956205781,45.0239,131.32,131.21,15.6386]
[1718956205782,0.17,131.26,131.21,15.6386]
[1718956205979,29.3,131.28,131.21,15.6386]
[1718956206183,0.34,131.27,131.21,15.6386]
[1718956206370,29.64,131.27,131.21,15.6386]
[1718956206570,29.3,131.24,131.21,15.6386]
[1718956206769,45.0,131.23,131.13,22.2038]
[1718956207171,0.34,131.22,131.13,22.2038]
[1718956207375,29.3,131.18,131.13,22.2038]
[1718956207592,29.3,131.18,131.12,0.8278858]
[1718956207790,0.17,131.17,131.12,0.8278858]
[1718956208086,45.0,131.18,131.12,0.8278858]
[1718956208275,29.3,131.16,131.12,0.8278858]
[1718956208483,20.0,131.17,131.12,0.8278858]
[1718956208676,0.34,131.16,131.12,0.8278858]
[1718956208900,45.34,131.16,131.12,0.8278858]
[1718956209366,390.70683811,131.23,131.12,0.8278858]
[1718956209572,65.34,131.22,131.12,0.8278858]
[1718956209780,65.17,131.22,131.12,0.8278858]
[1718956209982,0.17,131.21,131.12,0.8278858]
[1718956210872,7.98268647,131.26,131.14,6.3294]
[1718956211077,20.0,131.25,131.14,6.3294]
[1718956211261,42.26268647,131.3,131.14,6.3294]
[1718956211662,6.17400789,131.31,131.15,20.0]
[1718956211882,837.6,131.27,131.15,20.0]
[1718956212088,845.422144,131.27,131.15,20.0]
[1718956212261,845.422144,131.27,131.15,42.9]
[1718956212467,837.6,131.27,131.15,42.9]
[1718956212669,837.6,131.27,131.15,20.0]
[1718956212975,100.0,131.24,131.14,6.3294]
[1718956213566,0.17,131.23,131.14,6.3294]
[1718956213792,100.0,131.26,131.14,6.3294]
[1718956213963,745.42407892,131.27,131.15,22.9]
[1718956214158,637.6,131.27,131.16,42.9]
[1718956214782,100.0,131.26,131.16,20.0]
[1718956214967,100.0,131.26,131.15,42.9]
[1718956215396,100.0,131.26,131.15,20.0]
[1718956215601,0.17,131.25,131.15,20.0]
[1718956215760,100.0,131.24,131.14,6.3294]
[1718956215964,7.82514311,131.25,131.14,29.2294]
[1718956216301,637.6,131.27,131.14,29.2294]
[1718956216691,100.0,131.28,131.14,29.2294]
[1718956217015,100.0,131.29,131.14,35.3294]
[1718956217183,100.0,131.31,131.16,38.2215]
[1718956217378,100.0,131.31,131.18,22.9]
[1718956217580,455.1,131.32,131.2,38.7649]
[1718956217804,455.1,131.32,131.21,20.0]
[1718956217805,100.0,131.32,131.21,20.0]
[1718956218015,100.0,131.34,131.21,20.0]
[1718956218016,200.0,131.34,131.21,20.0]
[1718956218189,100.0,131.34,131.21,42.9]
[1718956218387,200.0,131.34,131.21,42.9]
[1718956218690,200.0,131.34,131.21,20.0]
[1718956218691,207.8207554,131.34,131.21,20.0]
[1718956219780,207.8207554,131.34,131.21,42.9]
[1718956219982,7.8207554,131.34,131.23,22.9]
[1718956220204,355.1,131.37,131.24,42.9]
[1718956220443,355.1,131.37,131.24,20.0]
[1718956220689,100.0,131.35,131.24,20.0]
[1718956220990,362.91882411,131.37,131.26,15.4808]
[1718956221199,100.0,131.37,131.26,38.3808]
[1718956221578,200.0,131.4,131.28,6.1897]
[1718956221982,200.0,131.4,131.28,29.0897]
[1718956222216,200.0,131.42,131.29,20.0]
[1718956222509,200.0,131.42,131.29,42.9]
[1718956223111,200.0,131.42,131.29,20.0]
[1718956223326,255.1,131.43,131.28,6.1897]
[1718956223327,200.0,131.4,131.28,6.1897]
[1718956223610,100.0,131.4,131.28,6.1897]
[1718956224203,200.0,131.4,131.28,6.1897]
[1718956224598,0.34,131.39,131.28,6.1897]
[1718956225121,0.17,131.39,131.28,29.0897]
[1718956225417,0.17,131.39,131.15,51.09341371]
[1718956225418,255.1,131.43,131.32,35.4556]
[1718956225599,107.637,131.46,131.33,42.9]
[1718956225600,100.0,131.46,131.33,42.9]
[1718956225806,200.0,131.46,131.33,42.9]
[1718956225999,100.0,131.46,131.33,20.0]
[1718956226201,100.0,131.48,131.33,20.0]
[1718956226512,100.0,131.48,131.34,61.4551]
[1718956226818,100.0,131.48,131.35,20.0]
[1718956227031,100.0,131.46,131.35,20.0]
[1718956227316,100.0,131.45,131.34,16.4551]
[1718956228306,100.0,131.43,131.34,16.4551]
[1718956228503,45.0,131.42,131.34,16.4551]
[1718956228819,100.34,131.41,131.34,16.4551]
[1718956230395,22.7438391,131.37,131.34,16.4551]
[1718956230740,145.0,131.4,131.34,16.4551]
[1718956230901,166.35454461,131.37,131.32,6.4638]
[1718956231102,45.0,131.42,131.3,16.5403]
[1718956231103,66.35454461,131.34,131.3,16.5403]
[1718956231299,66.35454461,131.33,131.28,6.2526]
[1718956231526,0.34,131.32,131.28,6.2526]
[1718956231939,100.0,131.35,131.28,6.2526]
[1718956232103,100.0,131.33,131.28,6.2526]
[1718956232304,166.35454461,131.31,131.26,16.5403]
[1718956232613,0.17,131.3,131.26,16.5403]
[1718956232822,66.69454461,131.3,131.26,16.5403]
[1718956233000,0.34,131.3,131.24,6.2526]
[1718956233335,66.35454461,131.28,131.21,16.2632]
[1718956233512,145.0,131.29,131.21,16.2632]
[1718956233513,66.35454461,131.25,131.21,16.2632]
[1718956234107,100.0,131.27,131.21,16.2632]
[1718956234426,0.34,131.26,131.21,16.2632]
[1718956235231,166.35454461,131.27,131.21,16.2632]
[1718956235232,166.35454461,131.31,131.21,16.2632]
[1718956235622,66.35454461,131.28,131.21,16.2632]
[1718956235803,100.0,131.31,131.21,16.2632]
[1718956236004,66.35454461,131.29,131.21,16.2632]
[1718956236226,100.0,131.31,131.21,16.2632]
[1718956236425,100.0,131.33,131.21,16.2632]
[1718956236633,86.52454461,131.31,131.21,16.2632]
[1718956236799,20.0,131.31,131.21,16.2632]
[1718956236999,86.35454461,131.31,131.21,16.2632]
[1718956237233,20.0,131.31,131.21,16.2632]
[1718956237407,86.35454461,131.31,131.21,16.2632]
[1718956237737,68.66738731,131.29,131.21,16.2632]
[1718956237918,20.0,131.31,131.21,16.2632]
[1718956238238,68.66738731,131.29,131.21,16.2632]
[1718956238533,0.34,131.28,131.21,16.2632]
[1718956238699,0.17,131.27,131.21,16.2632]
[1718956238904,0.17,131.26,131.21,16.2632]
[1718956239333,0.17,131.27,131.21,16.2632]
[1718956239705,20.0,131.31,131.21,16.2632]
[1718956239925,0.17,131.3,131.21,16.2632]
[1718956240135,182.50477462,131.31,131.21,16.2632]
[1718956240315,68.66738731,131.29,131.21,16.2632]
[1718956240506,68.66738731,131.27,131.21,16.2632]
[1718956240707,0.34,131.28,131.21,16.2632]
[1718956240911,0.17,131.28,131.21,16.2632]
[1718956241115,0.34,131.28,131.21,16.2632]
[1718956241333,0.34,131.28,131.13,40.3806]
[1718956241334,137.33477462,131.25,131.13,22.3325]
[1718956241512,0.17,131.24,131.13,22.3325]
[1718956241825,0.34,131.24,131.13,22.3325]
[1718956242027,65.0,131.25,131.13,22.3325]
[1718956242232,34.45,131.24,131.13,22.3325]
[1718956242414,68.66738731,131.19,131.13,22.3325]
[1718956242615,0.17,131.18,131.13,22.3325]
[1718956243521,68.66738731,131.17,131.13,22.3325]
[1718956243720,0.17,131.16,131.12,0.8278858]
[1718956244029,0.34,131.16,131.12,0.8278858]
[1718956244411,0.17,131.16,131.12,0.8278858]
[1718956244628,13.64703774,131.17,131.12,0.8278858]
[1718956244814,0.34,131.18,131.12,0.8278858]
[1718956245138,13.81703774,131.19,131.12,0.8278858]
[1718956245332,0.17,131.18,131.12,0.8278858]
[1718956246049,27.29407548,131.14,131.12,0.8278858]
[1718956246214,0.17,131.13,131.12,0.8278858]
[1718956247434,13.64703774,131.17,131.12,0.8278858]
[1718956247606,13.64703774,131.14,131.12,0.8278858]
[1718956247807,13.64703774,131.13,131.12,0.8278858]
[1718956248129,0.34,131.16,131.12,0.8278858]
[1718956248344,27.29407548,131.13,131.12,0.8278858]
[1718956248508,78.64703774,131.13,131.12,0.8278858]
[1718956248714,65.34,131.13,131.12,0.8278858]
[1718956248910,78.98703774,131.13,131.12,0.8278858]
[1718956249542,65.34,131.13,131.0,44.42911486]
[1718956249713,100.0,131.06,131.0,44.42911486]
[1718956249915,200.0,131.1,131.0,44.42911486]